bitfinex/quotes_BTCUSD_20220731
["timestamp","ask_amount","ask_price","bid_price","bid_amount"]
[1659250464776,0.28408549,23770.0,23769.0,0.01415617]
[1659250465232,0.25908549,23770.0,23769.0,0.01415617]
[1659250465964,0.25908549,23770.0,23769.0,0.01151973]
[1659250466178,0.25908549,23770.0,23769.0,0.01165155]
[1659250466885,0.25908549,23770.0,23769.0,0.31560655]
[1659250467106,0.25908549,23770.0,23769.0,0.41165155]
[1659250467331,0.33808549,23770.0,23769.0,0.71560655]
[1659250467550,0.33808549,23770.0,23769.0,0.41165155]
[1659250467783,0.33808549,23770.0,23769.0,0.36165155]
[1659250468046,0.33808549,23770.0,23769.0,0.01165155]
[1659250468304,0.41708549,23770.0,23769.0,0.01165155]
[1659250468753,0.41708549,23770.0,23769.0,0.31560655]
[1659250468961,0.41708549,23770.0,23769.0,0.01151973]
[1659250469403,0.25908549,23770.0,23769.0,0.08851973]
[1659250469906,0.29141137,23770.0,23769.0,0.08851973]
[1659250470125,0.25908549,23770.0,23769.0,0.08851973]
[1659250470573,0.23408549,23770.0,23769.0,0.01151973]
[1659250471247,0.23408549,23770.0,23769.0,0.01639135]
[1659250471465,0.31308549,23770.0,23769.0,0.32034635]
[1659250471944,0.31308549,23770.0,23769.0,0.31547473]
[1659250472180,0.31308549,23770.0,23769.0,0.01151973]
[1659250472394,0.38529337,23770.0,23769.0,0.01151973]
[1659250472834,0.27396749,23770.0,23769.0,0.01151973]
[1659250473508,0.35296749,23770.0,23769.0,0.31547473]
[1659250473734,0.35296749,23770.0,23769.0,0.06151973]
[1659250473969,0.35296749,23770.0,23769.0,0.01151973]
[1659250474659,0.35296749,23770.0,23769.0,0.31547473]
[1659250474884,0.27396749,23770.0,23769.0,0.01151973]
[1659250475547,0.27396749,23770.0,23769.0,0.08951973]
[1659250476720,0.27396749,23770.0,23769.0,0.01151973]
[1659250477408,0.27396749,23770.0,23769.0,0.31547473]
[1659250478072,0.27396749,23770.0,23769.0,0.01151973]
[1659250479428,0.27396749,23770.0,23769.0,0.31547473]
[1659250479646,0.27396749,23770.0,23769.0,0.61547473]
[1659250480068,0.27396749,23770.0,23769.0,0.39347473]
[1659250480286,0.27396749,23770.0,23769.0,0.69347473]
[1659250480510,0.27396749,23770.0,23769.0,0.74347473]
[1659250480745,0.27396749,23770.0,23769.0,0.08951973]
[1659250481198,0.27396749,23770.0,23769.0,0.31547473]
[1659250481419,0.27396749,23770.0,23769.0,0.09051973]
[1659250482666,0.27396749,23770.0,23769.0,0.01151973]
[1659250482920,0.27396749,23770.0,23769.0,0.31547473]
[1659250483140,0.27396749,23770.0,23769.0,0.01151973]
[1659250483416,0.27396749,23770.0,23769.0,0.31547473]
[1659250483639,0.27396749,23770.0,23769.0,0.01151973]
[1659250483825,0.27396749,23770.0,23769.0,0.31547473]
[1659250484736,0.27396749,23770.0,23769.0,0.01151973]
[1659250486098,0.27396749,23770.0,23769.0,0.36547473]
[1659250486330,0.27396749,23770.0,23769.0,0.71547473]
[1659250486766,0.27396749,23770.0,23769.0,0.41151973]
[1659250486974,0.27396749,23770.0,23769.0,0.71547473]
[1659250487222,0.27396749,23770.0,23769.0,0.41151973]
[1659250487438,0.27396749,23770.0,23769.0,0.01151973]
[1659250487704,0.27396749,23770.0,23769.0,0.31547473]
[1659250487929,0.27396749,23770.0,23769.0,0.14051973]
[1659250488152,0.27396749,23770.0,23769.0,0.49051973]
[1659250489048,0.27396749,23770.0,23769.0,0.41151973]
[1659250489281,0.27396749,23770.0,23769.0,0.41547473]
[1659250489503,0.27396749,23770.0,23769.0,0.71547473]
[1659250489938,0.27396749,23770.0,23769.0,0.79447473]
[1659250490613,0.27396749,23770.0,23769.0,0.09051973]
[1659250491096,0.27396749,23770.0,23769.0,0.36547473]
[1659250491317,0.27396749,23770.0,23769.0,0.79447473]
[1659250491552,0.27396749,23770.0,23769.0,0.49051973]
[1659250491782,0.27396749,23770.0,23769.0,0.79447473]
[1659250492227,0.27396749,23770.0,23769.0,0.49051973]
[1659250492460,0.26896749,23770.0,23769.0,0.49447473]
[1659250492684,0.26896749,23770.0,23769.0,0.41547473]
[1659250492901,0.26896749,23770.0,23769.0,0.41151973]
[1659250493563,0.26896749,23770.0,23769.0,0.71547473]
[1659250494223,0.26896749,23770.0,23769.0,0.71491073]
[1659250494659,0.26896749,23770.0,23769.0,0.66547473]
[1659250495479,0.26896749,23770.0,23769.0,0.06151973]
[1659250495690,0.26896749,23770.0,23769.0,0.01151973]
[1659250495906,0.26896749,23770.0,23769.0,0.39447473]
[1659250496344,0.26896749,23770.0,23769.0,0.21951973]
[1659250496556,0.26896749,23770.0,23769.0,0.16951973]
[1659250496780,0.26896749,23770.0,23769.0,0.47347473]
[1659250497229,0.26896749,23770.0,23769.0,0.36547473]
[1659250497459,0.26896749,23770.0,23769.0,0.66547473]
[1659250497687,0.26896749,23770.0,23769.0,0.61547473]
[1659250497918,0.26896749,23770.0,23769.0,0.74447473]
[1659250499306,0.26896749,23770.0,23769.0,0.66547473]
[1659250499522,0.26896749,23770.0,23769.0,0.31547473]
[1659250499954,0.26896749,23770.0,23769.0,0.39447473]
[1659250500168,0.26896749,23770.0,23769.0,0.74447473]
[1659250500441,0.26896749,23770.0,23769.0,0.44447473]
[1659250500659,0.26896749,23770.0,23769.0,0.74447473]
[1659250501529,0.26896749,23770.0,23769.0,0.79447473]
[1659250503376,0.26896749,23770.0,23769.0,0.71547473]
[1659250504058,0.26896749,23770.0,23769.0,0.79447473]
[1659250505203,0.26896749,23770.0,23769.0,0.41547473]
[1659250505437,0.26896749,23770.0,23769.0,0.303862]
[1659250505622,0.26896749,23770.0,23769.0,0.603862]
[1659250506103,0.26896749,23770.0,23769.0,0.682862]
[1659250507124,0.005,23775.0,23773.0,0.05]
[1659250507352,0.005,23775.0,23774.0,0.45]
[1659250507580,0.005,23775.0,23774.0,2.08796662]
[1659250508075,0.001,23778.0,23777.0,0.05]
[1659250508324,0.001,23778.0,23777.0,0.453862]
[1659250508568,0.001,23778.0,23777.0,0.05]
[1659250508569,0.08757,23778.0,23777.0,0.05]
[1659250508794,0.13202,23778.0,23773.0,0.228246]
[1659250509035,0.13202,23778.0,23773.0,0.63550333]
[1659250509036,0.3,23777.0,23773.0,0.63550333]
[1659250509256,0.3,23777.0,23774.0,0.398256]
[1659250509471,0.001,23778.0,23774.0,0.398256]
[1659250509472,0.001,23778.0,23776.0,0.05]
[1659250509699,0.001,23778.0,23777.0,0.05]
[1659250509928,0.001,23778.0,23777.0,0.353862]
[1659250510418,0.001,23778.0,23777.0,0.30620929]
[1659250510955,0.001,23778.0,23777.0,0.00234729]
[1659250511371,0.001,23778.0,23777.0,0.30620929]
[1659250511610,0.08757,23778.0,23776.0,0.210204]
[1659250511801,0.08757,23778.0,23774.0,0.094394]
[1659250512153,0.53927733,23778.0,23777.0,0.011]
[1659250512367,0.40825733,23778.0,23777.0,0.011]
[1659250512585,0.001,23778.0,23777.0,0.011]
[1659250513235,0.001,23778.0,23776.0,0.210226]
[1659250513455,0.001,23778.0,23777.0,0.05]
[1659250513659,0.001,23778.0,23777.0,0.303862]
[1659250513864,0.001,23778.0,23776.0,0.326339]
[1659250514075,0.001,23778.0,23777.0,0.05234729]
[1659250514291,0.001,23778.0,23777.0,0.35634863]
[1659250515018,0.001,23778.0,23777.0,1.16360596]
[1659250515244,0.001,23778.0,23777.0,0.75634863]
[1659250515921,0.001,23778.0,23777.0,0.79234863]
[1659250517185,0.001,23778.0,23777.0,0.75634863]
[1659250518082,0.001,23778.0,23777.0,0.79234863]
[1659250518569,0.001,23778.0,23777.0,1.19960596]
[1659250519433,0.001,23778.0,23777.0,1.16360596]
[1659250520076,0.001,23778.0,23777.0,1.21360596]
[1659250521201,0.001,23778.0,23777.0,1.16360596]
[1659250521927,0.0022,23780.0,23777.0,1.22560596]
[1659250522158,0.0022,23780.0,23779.0,0.05]
[1659250522364,0.0022,23780.0,23779.0,1.49164833]
[1659250522578,0.0022,23780.0,23779.0,1.79164833]
[1659250523744,0.0022,23780.0,23779.0,1.384391]
[1659250523965,0.0022,23780.0,23779.0,1.316391]
[1659250524397,0.0022,23780.0,23779.0,1.016391]
[1659250525294,0.0022,23780.0,23779.0,0.934391]
[1659250525509,0.08877,23780.0,23779.0,0.934391]
[1659250525725,0.08877,23780.0,23777.0,0.050538]
[1659250525726,0.54047733,23780.0,23777.0,0.050538]
[1659250525952,0.54047733,23780.0,23779.0,0.047]
[1659250526238,0.87666521,23780.0,23779.0,0.047]
[1659250526482,0.54047733,23780.0,23779.0,0.047]
[1659250526925,0.53827733,23780.0,23779.0,0.047]
[1659250527147,0.57060321,23780.0,23779.0,0.047]
[1659250527598,0.49382733,23780.0,23779.0,0.04934729]
[1659250527816,0.49382733,23780.0,23777.0,0.400538]
[1659250528055,0.49382733,23780.0,23779.0,0.078]
[1659250528285,0.52615321,23780.0,23779.0,0.078]
[1659250528956,0.49382733,23780.0,23779.0,0.08034729]
[1659250529182,0.49382733,23780.0,23779.0,0.078]
[1659250529392,0.40725733,23780.0,23778.0,0.00013933]
[1659250530116,0.40725733,23780.0,23779.0,0.00234729]
[1659250530327,0.71111933,23780.0,23777.0,0.450538]
[1659250530549,0.40725733,23780.0,23777.0,0.10067734]
[1659250530779,0.40725733,23780.0,23777.0,0.40067734]
[1659250530995,0.40725733,23780.0,23777.0,0.45067734]
[1659250531216,0.40825733,23781.0,23778.0,0.00234729]
[1659250532861,0.001,23781.0,23779.0,0.210192]
[1659250533077,0.001,23781.0,23780.0,0.303862]
[1659250533299,0.001,23781.0,23780.0,0.05]
[1659250533753,0.00092377,23781.0,23779.0,0.210192]
[1659250534233,0.00092377,23781.0,23780.0,0.05]
[1659250536033,0.00092377,23781.0,23780.0,0.052]
[1659250536278,0.00092377,23781.0,23780.0,0.002]
[1659250537397,0.00092377,23781.0,23779.0,0.61033132]
[1659250537680,0.0072,23783.0,23780.0,0.05]
[1659250537895,0.303862,23782.0,23781.0,0.00234729]
[1659250538114,0.176756,23783.0,23780.0,0.002]
[1659250538329,0.303862,23782.0,23780.0,0.002]
[1659250538564,0.0072,23783.0,23780.0,0.002]
[1659250538786,0.71831933,23783.0,23780.0,0.002]
[1659250539001,0.169556,23782.0,23781.0,0.00234729]
[1659250539470,0.20188188,23782.0,23779.0,0.210192]
[1659250539681,0.03232588,23782.0,23774.0,0.730517]
[1659250539901,0.3,23781.0,23777.0,0.3]
[1659250540138,0.3,23781.0,23776.0,0.210223]
[1659250540790,0.40725733,23780.0,23776.0,0.210223]
[1659250541981,0.40725733,23780.0,23776.0,0.315334]
[1659250542421,0.40725733,23780.0,23777.0,0.00234729]
[1659250542651,0.10725733,23780.0,23777.0,0.00234729]
[1659250543985,0.10725733,23780.0,23777.0,0.02534729]
[1659250544205,0.40725733,23781.0,23777.0,0.02534729]
[1659250544663,0.03232588,23780.0,23777.0,0.02534729]
[1659250544882,0.40725733,23781.0,23777.0,0.02534729]
[1659250545339,0.40725733,23781.0,23777.0,0.00234729]
[1659250545608,0.03232588,23780.0,23777.0,0.00234729]
[1659250546308,0.46102903,23780.0,23776.0,0.210223]
[1659250547241,0.46102903,23780.0,23777.0,0.00234729]
[1659250547467,0.42870315,23780.0,23776.0,0.210223]
[1659250547698,0.42870315,23780.0,23776.0,0.315334]
[1659250548814,0.42870315,23780.0,23777.0,0.00234729]
[1659250551332,0.03232588,23779.0,23776.0,0.210223]
[1659250551562,0.3,23777.0,23774.0,0.050544]
[1659250552062,0.3,23777.0,23776.0,0.005]
[1659250552520,0.03232588,23777.0,23776.0,0.005]
[1659250552754,0.40725733,23778.0,23776.0,0.005]
[1659250552993,0.40725733,23778.0,23776.0,0.00734729]
[1659250553236,0.40725733,23778.0,23776.0,0.00234729]
[1659250553917,0.40725733,23778.0,23776.0,0.01734729]
[1659250555276,0.40725733,23778.0,23776.0,0.00234729]
[1659250555993,0.40725733,23778.0,23776.0,0.01734729]
[1659250556436,0.43958321,23778.0,23776.0,0.01734729]
[1659250556733,0.40725733,23778.0,23776.0,0.32120929]
[1659250556944,0.40725733,23778.0,23776.0,0.01734729]
[1659250557192,0.40725733,23778.0,23776.0,0.015]
[1659250557402,0.40725733,23778.0,23777.0,0.00234729]
[1659250557614,0.40725733,23778.0,23775.0,0.105116]
[1659250557830,0.40725733,23778.0,23776.0,0.015]
[1659250558709,0.40725733,23778.0,23777.0,0.00234729]
[1659250558927,0.40725733,23778.0,23776.0,0.015]
[1659250559151,0.40725733,23778.0,23775.0,0.105116]
[1659250559833,0.40725733,23778.0,23776.0,0.00234729]
[1659250562823,0.40725733,23778.0,23775.0,0.105116]
[1659250563279,0.40725733,23778.0,23776.0,0.015]
[1659250563500,0.40725733,23778.0,23776.0,0.01734729]
[1659250563725,0.83596048,23780.0,23776.0,0.01734729]
[1659250563939,0.83596048,23780.0,23776.0,0.03234729]
[1659250564151,0.83596048,23780.0,23776.0,0.29256429]
[1659250564441,0.83596048,23780.0,23776.0,0.24256429]
[1659250564622,0.83596048,23780.0,23776.0,0.56256429]
[1659250565063,0.03232588,23779.0,23776.0,0.51256429]
[1659250565280,0.03232588,23779.0,23776.0,0.21256429]
[1659250565969,0.83596048,23780.0,23776.0,0.27556429]
[1659250566205,0.03232588,23779.0,23776.0,0.86544373]
[1659250566416,0.83596048,23780.0,23776.0,0.86544373]
[1659250567296,0.83596048,23780.0,23776.0,0.85244373]
[1659250567740,0.83596048,23780.0,23777.0,0.00013934]
[1659250569309,0.83596048,23780.0,23777.0,0.10524434]
[1659250569572,0.83596048,23780.0,23778.0,0.28989162]
[1659250569739,0.83596048,23780.0,23779.0,0.00234729]
[1659250570395,0.83596048,23780.0,23778.0,0.28989162]
[1659250570612,0.83596048,23780.0,23777.0,0.10524434]
[1659250570828,0.83596048,23780.0,23778.0,0.00234729]
[1659250571467,0.83596048,23780.0,23777.0,0.10524434]
[1659250571468,0.86828636,23780.0,23777.0,0.10524434]
[1659250571944,0.83596048,23780.0,23778.0,0.00234729]
[1659250572319,0.3,23781.0,23778.0,0.00234729]
[1659250572541,0.3,23781.0,23777.0,0.40524434]
[1659250572996,0.3,23781.0,23777.0,0.10524434]
[1659250573223,0.3,23781.0,23776.0,0.210217]
[1659250573224,0.40725733,23780.0,23776.0,0.210217]
[1659250573453,0.303862,23779.0,23775.0,0.105116]
[1659250573691,0.82922789,23780.0,23775.0,0.105116]
[1659250575449,0.303862,23779.0,23774.0,0.050544]
[1659250575691,0.3,23779.0,23774.0,0.050544]
[1659250575954,0.82922789,23780.0,23774.0,0.050544]
[1659250578103,0.40725733,23779.0,23774.0,0.050544]
[1659250579233,0.70725733,23779.0,23774.0,0.050544]
[1659250579453,0.40725733,23778.0,23774.0,0.050544]
[1659250579705,0.03467316,23777.0,23774.0,0.050544]
[1659250579959,0.8593,23779.0,23774.0,0.050544]
[1659250580157,0.96655733,23779.0,23774.0,0.155661]
[1659250580388,1.26655733,23779.0,23774.0,0.155661]
[1659250580626,0.71111933,23778.0,23774.0,0.050544]
[1659250580880,1.0990365,23775.0,23774.0,0.050544]
[1659250581103,1.0990365,23775.0,23766.0,0.210305]
[1659250581104,0.0990365,23771.0,23766.0,0.210305]
[1659250581330,0.0990365,23771.0,23762.0,0.8699]
[1659250581331,0.87681333,23770.0,23762.0,0.8699]
[1659250581590,0.40725733,23769.0,23762.0,0.8699]
[1659250581819,0.3,23768.0,23762.0,0.5566]
[1659250582047,0.40725733,23767.0,23762.0,0.5566]
[1659250582263,0.40725733,23767.0,23761.0,0.815247]
[1659250582508,0.40725733,23767.0,23761.0,0.210347]
[1659250582733,0.40725733,23767.0,23762.0,0.303862]
[1659250582959,0.40725733,23767.0,23761.0,0.210347]
[1659250583185,0.40725733,23767.0,23762.0,0.303862]
[1659250583413,0.40725733,23767.0,23761.0,0.31552]
[1659250583414,0.40725733,23767.0,23763.0,0.303862]
[1659250583686,0.40725733,23767.0,23762.0,0.353862]
[1659250583936,0.43725733,23767.0,23763.0,0.303862]
[1659250584172,0.40725733,23766.0,23763.0,0.353862]
[1659250584402,0.03,23767.0,23765.0,0.05]
[1659250584618,0.03,23767.0,23766.0,1.23169133]
[1659250584843,0.03,23767.0,23766.0,1.62606421]
[1659250585118,0.03,23767.0,23766.0,1.59447421]
[1659250585769,0.3,23773.0,23766.0,1.59447421]
[1659250585991,0.70725733,23773.0,23767.0,0.864163]
[1659250586218,0.70554925,23773.0,23767.0,0.57294448]
[1659250587327,0.70554925,23773.0,23767.0,0.57273848]
[1659250588055,0.78454925,23773.0,23767.0,0.57273848]
[1659250588961,0.78454925,23773.0,23767.0,0.560095]
[1659250589181,0.40554925,23773.0,23767.0,0.560095]
[1659250589824,0.40554925,23773.0,23767.0,0.610095]
[1659250590040,0.48454925,23773.0,23767.0,0.610095]
[1659250590696,0.78454925,23773.0,23767.0,0.610095]
[1659250590926,0.079,23773.0,23772.0,0.45]
[1659250591158,0.079,23773.0,23772.0,1.234559]
[1659250591429,0.433202,23780.0,23772.0,0.934559]
[1659250591728,0.40725733,23779.0,23772.0,0.785819]
[1659250591956,0.40725733,23779.0,23773.0,0.05]
[1659250594016,0.45625733,23779.0,23773.0,0.4]
[1659250594246,0.45625733,23779.0,23774.0,0.91748833]
[1659250594247,0.049,23779.0,23774.0,0.91748833]
[1659250594472,0.049,23779.0,23775.0,1.04269933]
[1659250594706,0.049,23779.0,23776.0,0.603862]
[1659250594932,0.049,23779.0,23778.0,0.05]
[1659250595403,0.74579249,23779.0,23774.0,0.210231]
[1659250595645,0.74579249,23779.0,23771.0,0.105113]
[1659250595646,0.57681333,23778.0,23771.0,0.615379]
[1659250595863,0.40725733,23778.0,23772.0,0.35]
[1659250597431,0.40725733,23778.0,23773.0,0.210243]
[1659250597654,0.40725733,23778.0,23774.0,0.303862]
[1659250597878,0.40725733,23778.0,23773.0,0.560243]
[1659250598179,0.079,23778.0,23774.0,0.603862]
[1659250598396,0.03467316,23777.0,23774.0,0.105114]
[1659250598620,0.46080745,23777.0,23774.0,0.105114]
[1659250599738,0.42613429,23777.0,23774.0,0.105114]
[1659250599968,0.42813429,23777.0,23774.0,0.153114]
[1659250601296,0.42613429,23777.0,23774.0,0.105114]
[1659250601951,0.50513429,23777.0,23774.0,0.105114]
[1659250603320,0.42613429,23777.0,23774.0,0.105114]
[1659250603767,0.99465733,23779.0,23774.0,0.155114]
[1659250603980,0.079,23777.0,23774.0,0.455114]
[1659250604202,0.079,23777.0,23775.0,0.05]
[1659250604419,0.079,23777.0,23776.0,0.210218]
[1659250605350,0.40725733,23778.0,23776.0,0.315329]
[1659250605548,0.303862,23777.0,23776.0,0.315329]
[1659250605779,0.40725733,23778.0,23776.0,0.315329]
[1659250606005,0.48625733,23778.0,23776.0,0.315329]
[1659250606176,0.52093049,23778.0,23776.0,0.315329]
[1659250606397,0.52093049,23778.0,23776.0,0.210218]
[1659250606742,0.48625733,23778.0,23776.0,0.210218]
[1659250607204,0.52093049,23778.0,23776.0,0.210218]
[1659250607416,0.48625733,23778.0,23776.0,0.210218]
[1659250608045,0.52083236,23778.0,23776.0,0.210218]
[1659250608248,0.4861592,23778.0,23776.0,0.210218]
[1659250609096,0.4861592,23778.0,23774.0,0.105114]
[1659250609097,0.03467316,23777.0,23774.0,0.105114]
[1659250609317,0.6116,23783.0,23774.0,0.925564]
[1659250609526,1.42809054,23782.0,23776.0,0.105104]
[1659250609733,0.40725733,23781.0,23777.0,0.210208]
[1659250610148,0.33853516,23780.0,23777.0,0.210208]
[1659250610356,0.40725733,23781.0,23777.0,0.210208]
[1659250611198,0.40725733,23781.0,23777.0,0.610208]
[1659250611401,0.03467316,23780.0,23777.0,0.210208]
[1659250612454,0.46325733,23781.0,23777.0,0.210208]
[1659250612658,0.03467316,23780.0,23777.0,0.210208]
[1659250613282,0.35070458,23776.0,23775.0,0.3]
[1659250613493,0.35070458,23776.0,23775.0,0.4]
[1659250613694,0.35070458,23776.0,23775.0,0.703862]
[1659250613913,0.35070458,23776.0,23775.0,0.782862]
[1659250615276,0.35070458,23776.0,23775.0,0.91408]
[1659250615698,0.35070458,23776.0,23775.0,0.610218]
[1659250615918,0.35070458,23776.0,23775.0,0.99308]
[1659250616353,0.35070458,23776.0,23775.0,1.40033733]
[1659250617669,0.35070458,23776.0,23775.0,1.32133733]
[1659250617888,0.35070458,23776.0,23775.0,1.39933733]
[1659250619281,0.35070458,23776.0,23775.0,1.32133733]
[1659250619965,0.35070458,23776.0,23775.0,1.40033733]
[1659250620920,0.34870458,23776.0,23775.0,1.40033733]
[1659250621344,0.34870458,23776.0,23775.0,1.32133733]
[1659250622006,0.34870458,23776.0,23775.0,1.39933733]
[1659250623338,0.34870458,23776.0,23775.0,1.32133733]
[1659250624068,0.34870458,23776.0,23775.0,1.39933733]
[1659250624285,0.34870458,23776.0,23775.0,0.99933733]
[1659250625407,0.34870458,23776.0,23775.0,0.92133733]
[1659250625622,0.34870458,23776.0,23775.0,1.62133733]
[1659250625870,0.34870458,23776.0,23775.0,1.11169881]
[1659250626100,0.34870458,23776.0,23775.0,1.78191733]
[1659250626352,0.34870458,23776.0,23775.0,1.45033733]
[1659250627466,0.34870458,23776.0,23775.0,1.37133733]
[1659250627917,0.34870458,23776.0,23775.0,1.45026284]
[1659250629269,0.34870458,23776.0,23775.0,1.37126284]
[1659250629939,0.34870458,23776.0,23775.0,1.45026284]
[1659250630229,0.34870458,23776.0,23775.0,0.69647533]
[1659250630694,0.34870458,23776.0,23775.0,1.00033733]
[1659250631347,0.34870458,23776.0,23775.0,0.92133733]
[1659250631577,0.34870458,23776.0,23775.0,1.27133733]
[1659250631781,0.34870458,23776.0,23775.0,1.32133733]
[1659250631984,0.34870458,23776.0,23775.0,1.40033733]
[1659250633189,0.34870458,23776.0,23775.0,1.32133733]
[1659250633851,0.34870458,23776.0,23775.0,1.40033733]
[1659250635322,0.34870458,23776.0,23775.0,1.32133733]
[1659250635980,0.34870458,23776.0,23775.0,1.40033733]
[1659250637201,0.34870458,23776.0,23775.0,1.32133733]
[1659250638076,0.34870458,23776.0,23775.0,1.40033733]
[1659250639343,0.34870458,23776.0,23775.0,1.32133733]
[1659250639977,0.34870458,23776.0,23775.0,1.40033733]
[1659250641311,0.34870458,23776.0,23775.0,1.32133733]
[1659250641998,0.34870458,23776.0,23775.0,1.40033733]
[1659250643797,0.34870458,23776.0,23775.0,1.32133733]
[1659250644021,0.34870458,23776.0,23775.0,0.99308]
[1659250645153,0.34870458,23776.0,23775.0,0.339218]
[1659250645393,0.34870458,23776.0,23775.0,1.28291803]
[1659250645644,0.34870458,23776.0,23775.0,1.20391803]
[1659250646098,0.34870458,23776.0,23775.0,1.28291803]
[1659250647208,0.34870458,23776.0,23775.0,1.20391803]
[1659250648065,0.34870458,23776.0,23775.0,1.28291803]
[1659250649010,0.34870458,23776.0,23775.0,0.289218]
[1659250649237,0.34870458,23776.0,23775.0,0.210218]
[1659250649793,0.34870458,23776.0,23775.0,0.51408]
[1659250650003,0.34870458,23776.0,23775.0,0.289218]
[1659250650216,0.34870458,23776.0,23775.0,0.89308]
[1659250650437,0.34870458,23776.0,23775.0,0.94308]
[1659250650646,0.34870458,23776.0,23775.0,0.99308]
[1659250650839,0.34870458,23776.0,23775.0,0.94308]
[1659250651096,0.34870458,23776.0,23775.0,0.99308]
[1659250651313,0.34870458,23776.0,23775.0,0.86408]
[1659250651527,0.34870458,23776.0,23775.0,0.91408]
[1659250652391,0.3486376,23776.0,23775.0,0.91408]
[1659250652846,0.3486376,23776.0,23775.0,0.610218]
[1659250653061,0.3486376,23776.0,23775.0,0.91408]
[1659250653306,0.3486376,23776.0,23775.0,0.99321935]
[1659250653969,0.3486376,23776.0,23775.0,1.07221935]
[1659250654701,0.3486376,23776.0,23775.0,0.91421935]
[1659250655707,0.3486376,23776.0,23775.0,0.86421935]
[1659250655938,0.3486376,23776.0,23775.0,0.94321935]
[1659250656160,0.3486376,23776.0,23775.0,0.99321935]
[1659250657223,0.3486376,23776.0,23775.0,0.91421935]
[1659250657438,0.3486376,23776.0,23775.0,0.51408]
[1659250657858,0.3486376,23776.0,23775.0,0.59308]
[1659250658773,0.3486376,23776.0,23775.0,0.99308]
[1659250659413,0.3486376,23776.0,23775.0,0.86421935]
[1659250660068,0.3486376,23776.0,23775.0,0.99321935]
[1659250661400,0.3486376,23776.0,23775.0,0.91421935]
[1659250662071,0.3486376,23776.0,23775.0,0.68935735]
[1659250662292,0.3486376,23776.0,23775.0,0.99321935]
[1659250663165,0.3486376,23776.0,23775.0,0.91421935]
[1659250664056,0.3486376,23776.0,23775.0,0.61035735]
[1659250664299,0.3486376,23776.0,23775.0,0.91414475]
[1659250665548,0.3486376,23776.0,23775.0,0.61028275]
[1659250665766,0.3486376,23776.0,23775.0,0.91414475]
[1659250666257,0.3486376,23776.0,23775.0,0.99314475]
[1659250666501,0.3486376,23776.0,23775.0,1.29314475]
[1659250666937,0.3486376,23776.0,23775.0,1.07214475]
[1659250668317,0.3486376,23776.0,23775.0,0.91414475]
[1659250668613,0.3486376,23776.0,23775.0,0.99314475]
[1659250668838,0.3486376,23776.0,23775.0,0.91414475]
[1659250670426,0.3486376,23776.0,23775.0,0.99314475]
[1659250670860,0.3486376,23776.0,23775.0,1.75040208]
[1659250671089,0.004,23783.0,23782.0,0.1]
[1659250671318,0.0022,23785.0,23784.0,0.05]
[1659250671777,0.0022,23785.0,23784.0,0.353862]
[1659250672029,0.0022,23785.0,23784.0,0.05]
[1659250672261,0.5584,23789.0,23785.0,0.105072]
[1659250672524,0.5584,23789.0,23786.0,0.210124]
[1659250672525,0.03467316,23788.0,23786.0,0.210124]
[1659250672742,0.96565733,23789.0,23786.0,0.210124]
[1659250672743,0.40725733,23789.0,23786.0,0.210124]
[1659250672958,0.40725733,23789.0,23787.0,0.05]
[1659250673186,0.40725733,23789.0,23787.0,0.155059]
[1659250673419,0.303862,23788.0,23787.0,0.155059]
[1659250673701,0.41045733,23790.0,23787.0,0.105059]
[1659250673924,0.303862,23789.0,23787.0,0.105059]
[1659250674145,0.41045733,23790.0,23787.0,0.105059]
[1659250674374,0.303862,23789.0,23787.0,0.105059]
[1659250674605,0.172756,23790.0,23787.0,0.105059]
[1659250674829,0.172756,23790.0,23788.0,0.00013927]
[1659250675096,0.303862,23789.0,23788.0,0.00013927]
[1659250675334,0.172756,23790.0,23788.0,0.00013927]
[1659250675565,0.303862,23789.0,23788.0,0.00013927]
[1659250675782,0.0032,23790.0,23788.0,0.00013927]
[1659250676014,0.307062,23790.0,23788.0,0.00013927]
[1659250676262,0.164556,23789.0,23788.0,0.00013927]
[1659250676482,0.0032,23790.0,23788.0,0.00013927]
[1659250676711,0.303705,23789.0,23788.0,0.00013927]
[1659250676945,0.303705,23789.0,23787.0,0.10519828]
[1659250677158,0.03787316,23790.0,23787.0,0.10519828]
[1659250677381,0.34157816,23790.0,23787.0,0.10519828]
[1659250677614,0.34157816,23790.0,23786.0,0.210124]
[1659250678050,0.34157816,23790.0,23787.0,0.00013928]
[1659250678270,0.164738,23789.0,23786.0,0.210124]
[1659250678724,0.03787316,23790.0,23786.0,0.210124]
[1659250678954,0.34157816,23790.0,23786.0,0.210124]
[1659250679166,0.164738,23789.0,23786.0,0.210124]
[1659250679395,0.03787316,23790.0,23786.0,0.210124]
[1659250679620,0.303705,23789.0,23787.0,0.00014091]
[1659250679867,0.20261116,23790.0,23787.0,0.00014091]
[1659250680156,0.303705,23789.0,23787.0,0.00014091]
[1659250680597,0.159738,23788.0,23787.0,0.00014091]
[1659250680824,0.41045733,23790.0,23787.0,0.00014091]
[1659250681065,0.303714,23789.0,23787.0,0.00014091]
[1659250681766,0.459727,23788.0,23786.0,0.210124]
[1659250681983,0.41045733,23790.0,23786.0,0.210124]
[1659250682214,0.303714,23789.0,23786.0,0.210124]
[1659250682446,0.41045733,23790.0,23786.0,0.210124]
[1659250682678,0.303714,23789.0,23786.0,0.210124]
[1659250682915,0.41045733,23790.0,23786.0,0.210124]
[1659250683134,0.41045733,23790.0,23786.0,0.560124]
[1659250683354,0.41045733,23790.0,23787.0,0.105061]
[1659250683572,0.41045733,23790.0,23787.0,0.405061]
[1659250683824,0.41045733,23790.0,23787.0,0.105061]
[1659250684092,0.33838716,23789.0,23786.0,0.210124]
[1659250684321,0.159727,23788.0,23786.0,0.210124]
[1659250684542,0.03467316,23789.0,23786.0,0.210124]
[1659250684997,0.33838716,23789.0,23786.0,0.210124]
[1659250685220,0.03467316,23789.0,23786.0,0.21268227]
[1659250685463,0.33838716,23789.0,23786.0,0.21268227]
[1659250685677,0.03467316,23789.0,23786.0,0.21268227]
[1659250686342,0.86793555,23790.0,23786.0,0.21268227]
[1659250686579,0.303714,23789.0,23786.0,0.21268227]
[1659250686821,0.86793555,23790.0,23786.0,0.21268227]
[1659250687047,0.303714,23789.0,23786.0,0.21268227]
[1659250687288,0.159727,23788.0,23786.0,0.21268227]